bitfinex-derivatives/quotes_ETHF0:USTF0_20250411
["timestamp","ask_amount","ask_price","bid_price","bid_amount"]
[1744399032379,1.27535,1569.0,1568.8,4.71]
[1744399032580,3.94624,1569.1,1569.0,1.2753]
[1744399032782,2.671,1569.1,1568.9,5.0399]
[1744399032985,1.2753,1569.0,1568.9,6.31525]
[1744399033280,1.2753,1569.0,1568.9,11.02525]
[1744399033678,3.9463,1569.1,1569.0,1.2753]
[1744399033880,1.2753,1569.0,1568.9,11.02522]
[1744399034087,1.27539,1568.9,1568.6,11.10786]
[1744399034382,4.11589,1568.9,1568.8,5.0399]
[1744399034583,4.11589,1568.9,1568.8,6.31537]
[1744399034978,2.8405,1568.9,1568.8,6.31537]
[1744399035283,1.27536,1569.0,1568.9,1.27539]
[1744399035478,1.27536,1569.0,1568.9,3.86149]
[1744399035882,1.27536,1569.0,1568.9,2.5861]
[1744399036085,1.27539,1568.9,1568.8,3.51021]
[1744399036386,4.12219,1568.9,1568.8,3.51021]
[1744399037073,4.12219,1568.9,1568.8,2.2348]
[1744399037280,4.12219,1568.9,1568.8,3.51027]
[1744399037785,2.8468,1568.9,1568.6,9.19439]
[1744399038089,1.27555,1568.7,1568.6,14.17839]
[1744399038382,7.4236,1568.8,1568.3,3.2078]
[1744399038577,1.27579,1568.4,1568.3,2.3979]
[1744399038777,5.9831,1568.7,1568.3,8.79537]
[1744399038979,4.5768,1568.8,1568.7,1.27555]
[1744399039180,1.27541,1568.9,1568.8,1.27541]
[1744399039377,1.27541,1568.9,1568.8,4.9687]
[1744399039879,0.00956511,1569.2,1568.8,4.9687]
[1744399040080,1.27532,1569.0,1568.9,2.5708]
[1744399040382,1.27539,1568.9,1568.8,6.05193]
[1744399040579,1.27539,1568.9,1568.8,8.62273]
[1744399040779,1.27539,1568.9,1568.8,7.3473]
[1744399040980,1.27539,1568.9,1568.8,4.9687]
[1744399041181,1.27539,1568.9,1568.8,2.3979]
[1744399042081,1.27539,1568.9,1568.8,3.67337]
[1744399042279,1.27539,1568.9,1568.8,5.2336]
[1744399042674,2.7753,1569.0,1568.8,5.2336]
[1744399042982,1.27539,1568.9,1568.8,5.2336]
[1744399043285,1.27539,1568.9,1568.8,6.50907]
[1744399043490,4.0506,1569.0,1568.9,1.27539]
[1744399043693,4.0506,1569.0,1568.9,4.11109]
[1744399043879,5.85209,1569.1,1569.0,1.2753]
[1744399044082,6.25309,1569.1,1569.0,4.111]
[1744399044380,2.6163,1569.1,1569.0,4.111]
[1744399044574,4.10427511,1569.2,1569.1,1.27522]
[1744399044887,1.28470511,1569.2,1569.1,6.14562]
[1744399045090,1.28470511,1569.2,1569.1,4.8704]
[1744399045581,1.27522,1569.1,1569.0,4.712]
[1744399045889,1.27522,1569.1,1569.0,5.9873]
[1744399046074,1.27522,1569.1,1569.0,8.6229]
[1744399046674,4.10426511,1569.2,1569.1,1.27522]
[1744399046876,4.10426511,1569.2,1569.1,3.91082]
[1744399047380,4.10426511,1569.2,1569.1,2.6356]
[1744399047784,4.10426511,1569.2,1569.1,3.91082]
[1744399048092,4.10426511,1569.2,1569.1,2.6356]
[1744399048292,4.10426511,1569.2,1569.1,3.91082]
[1744399048483,0.00956511,1569.2,1569.1,3.91082]
[1744399048792,1.28470511,1569.2,1569.1,3.91082]
[1744399050089,1.2753,1569.0,1568.9,4.6527]
[1744399050286,1.2753,1569.0,1568.9,5.92809]
[1744399050587,1.2753,1569.0,1568.9,9.14502779]
[1744399052602,3.86157,1569.1,1569.0,1.2753]
[1744399052791,1.28476511,1569.2,1569.1,1.27522]
[1744399053089,1.27522,1569.1,1569.0,4.01567]
[1744399053285,1.28477511,1569.2,1569.1,1.27522]
[1744399053485,1.28477511,1569.2,1569.1,2.7569]
[1744399053885,3.91387511,1569.2,1569.1,2.7569]
[1744399055187,3.91387511,1569.2,1569.1,4.50944453]
[1744399055886,3.91387511,1569.2,1569.1,4.03212]
[1744399056087,3.91387511,1569.2,1569.1,4.50944499]
[1744399056691,1.27522,1569.1,1569.0,5.98626]
[1744399056890,4.03242,1569.1,1569.0,6.46380629]
[1744399057089,4.03242,1569.1,1569.0,9.04460629]
[1744399058096,4.03242,1569.1,1569.0,9.04459534]
[1744399058592,4.03242,1569.1,1569.0,6.46379534]
[1744399058793,6.43442,1569.1,1569.0,6.46379534]
[1744399059896,6.43442,1569.1,1569.0,5.98626]
[1744399060090,6.43442,1569.1,1569.0,6.46383156]
[1744399061593,6.43442,1569.1,1569.0,5.18857156]
[1744399061799,6.43442,1569.1,1569.0,5.18857433]
[1744399063096,6.43442,1569.1,1569.0,6.46387433]
[1744399064795,4.03242,1569.1,1569.0,1.75287433]
[1744399064992,4.03242,1569.1,1569.0,0.47757433]
[1744399065494,1.2753,1569.0,1568.9,1.27532]
[1744399065685,6.3146,1569.0,1568.9,1.75294317]
[1744399067896,6.3146,1569.0,1568.9,0.47762317]
[1744399068102,6.3146,1569.0,1568.9,1.75301317]
[1744399068900,2.30606511,1569.2,1569.1,1.27522]
[1744399069095,6.37574511,1569.2,1569.1,0.47771304]
[1744399069294,6.37574511,1569.2,1569.1,9.05113648]
[1744399069796,4.07924511,1569.2,1569.1,9.05113648]
[1744399070802,0.00956511,1569.2,1569.1,9.05113648]
[1744399070997,0.00956511,1569.2,1569.1,14.05113648]
[1744399071197,0.00956511,1569.2,1569.1,9.05113414]
[1744399071598,1.28470511,1569.2,1569.1,9.05113414]
[1744399071795,0.00956511,1569.2,1569.1,9.05113414]
[1744399073105,0.00956511,1569.2,1569.1,9.05116068]
[1744399073909,1.28470511,1569.2,1569.1,9.05116068]
[1744399074204,3.94810511,1569.2,1569.1,9.05116068]
[1744399074617,2.67296511,1569.2,1569.1,9.05116068]
[1744399074802,2.67296511,1569.2,1569.1,9.05117723]
[1744399076004,0.00956511,1569.2,1569.1,9.05117723]
[1744399076506,0.00956511,1569.2,1569.1,14.05117723]
[1744399076700,0.00956511,1569.2,1569.1,14.05105045]
[1744399078205,0.00956511,1569.2,1569.1,9.05105045]
[1744399078405,0.00956511,1569.2,1569.1,14.05105045]
[1744399078604,0.00956511,1569.2,1569.1,14.05087793]
[1744399078908,0.00956511,1569.2,1569.1,9.05087793]
[1744399080209,4.04110511,1569.2,1569.1,9.05087793]
[1744399080412,0.00956511,1569.2,1569.1,6.45977793]
[1744399080612,0.00956511,1569.2,1569.1,9.18897793]
[1744399081705,0.00956511,1569.2,1569.1,9.18892298]
[1744399082514,4.96939425,1569.5,1569.4,1.27498]
[1744399082713,4.96939425,1569.5,1569.4,6.45948298]
[1744399083207,6.24429425,1569.5,1569.4,6.45948298]
[1744399083510,9.87269425,1569.5,1569.4,6.45948298]
[1744399083709,11.14759425,1569.5,1569.4,6.45948298]
[1744399083902,11.14759425,1569.5,1569.4,6.45914885]
[1744399084904,11.14759425,1569.5,1569.3,5.00126511]
[1744399084905,1.27498,1569.4,1569.3,0.00956511]
[1744399085107,3.79528,1569.4,1569.3,0.00956511]
[1744399085412,8.79528,1569.4,1569.3,0.00956511]
[1744399088315,3.79528,1569.4,1569.3,0.00956511]
[1744399089920,8.76467425,1569.4,1569.3,0.00956511]
[1744399091014,16.97247425,1569.4,1569.3,0.00956511]
[1744399091217,1.27539,1568.9,1568.8,24.87772501]
[1744399092121,4.48319,1568.9,1568.8,24.87772501]
[1744399092322,9.20399,1568.9,1568.8,24.87772501]
[1744399092521,5.99619,1568.9,1568.8,24.87772501]
[1744399094020,14.20399,1568.9,1568.8,23.56280501]
[1744399094321,14.20399,1568.9,1568.8,20.89247501]
[1744399094517,14.20399,1568.9,1568.8,19.53596501]
[1744399095027,1.27571,1568.5,1568.4,9.94401103]
[1744399095212,1.27571,1568.5,1568.4,11.21980103]
[1744399095419,1.27571,1568.5,1568.4,13.92510103]
[1744399096319,4.86506511,1568.6,1568.5,1.27571]
[1744399096320,6.14075511,1568.6,1568.5,1.27571]
[1744399096524,6.14076511,1568.6,1568.5,1.27571]
[1744399096718,6.14076511,1568.6,1568.5,4.04011]
[1744399097027,0.00956511,1568.6,1568.5,4.04011]
[1744399097222,1.28519511,1568.6,1568.5,6.31961]
[1744399098427,1.27571,1568.5,1568.4,7.94259103]
[1744399098728,11.79241,1568.5,1568.4,7.94259103]
[1744399099620,7.3089,1568.5,1568.4,9.21838103]
[1744399099926,1.27571,1568.5,1568.4,9.21838103]
[1744399100127,0.00956511,1568.6,1568.5,1.27571]
[1744399100321,0.00956511,1568.6,1568.5,8.54311]
[1744399100522,4.96939425,1568.9,1568.8,1.27547]
[1744399100729,4.96939425,1568.9,1568.8,14.18727]
[1744399101126,6.24478425,1568.9,1568.8,7.9118]
[1744399101326,8.98288425,1568.9,1568.8,7.9118]
[1744399101530,4.01349,1568.9,1568.8,7.9118]
[1744399101832,1.27547,1568.8,1568.7,6.20467511]
[1744399102125,4.01357,1568.8,1568.7,6.20471511]
[1744399102825,13.73255138,1569.0,1568.9,1.27539]
[1744399103026,13.73255138,1569.0,1568.9,9.18719]
[1744399103027,12.45722138,1569.0,1568.9,9.18719]
[1744399103230,4.71570811,1569.0,1568.9,14.18719]
[1744399103533,2.6278,1569.5,1569.4,1.27498]
[1744399103834,2.6278,1569.5,1569.4,9.18678]
[1744399104035,3.2078,1569.9,1569.4,7.9118]
[1744399104348,9.92392885,1569.6,1569.5,3.86600511]
[1744399105225,11.19874885,1569.6,1569.5,3.86600511]
[1744399105427,9.92392885,1569.6,1569.5,3.86600511]
[1744399105925,12.48742885,1569.6,1569.5,3.86600511]
[1744399107434,9.92392885,1569.6,1569.5,3.86600511]
[1744399107835,9.92392885,1569.6,1569.5,8.86600511]
[1744399108137,4.64432554,1569.6,1569.5,8.86600511]
[1744399108339,0.00956511,1569.8,1569.7,1.27474]
[1744399108635,0.00956511,1569.8,1569.7,9.18554]
[1744399109027,0.00956511,1569.8,1569.7,11.51674]
[1744399109938,0.00956511,1569.8,1569.7,16.51674]
[1744399113132,0.00956511,1569.8,1569.7,11.51674]
[1744399115237,0.00956511,1569.8,1569.5,3.21736511]
[1744399115238,3.19623511,1569.8,1569.5,3.21736511]
[1744399115541,2.5524,1569.7,1569.6,1.27482]
[1744399115743,1.27482,1569.6,1569.5,7.15039511]
[1744399115937,3.82719,1569.7,1569.6,1.27482]
[1744399116140,3.82719,1569.7,1569.6,3.93302]
[1744399116343,3.82719,1569.7,1569.6,7.3592]
[1744399116841,3.82719,1569.7,1569.6,8.63402]
[1744399117044,3.82719,1569.7,1569.6,7.3592]
[1744399117538,3.82719,1569.7,1569.6,8.63402]
[1744399118138,3.82719,1569.7,1569.6,7.3592]
[1744399118344,3.82719,1569.7,1569.6,8.63402]
[1744399118943,3.82719,1569.7,1569.6,7.3592]
[1744399119242,3.82719,1569.7,1569.6,4.701]
[1744399119439,3.82719,1569.7,1569.6,5.97582]
[1744399119636,2.5524,1569.7,1569.6,8.76122]
[1744399119836,3.82714,1569.7,1569.6,8.76122]
[1744399120344,2.5524,1569.7,1569.6,8.76122]
[1744399120544,5.85836511,1569.8,1569.7,1.27474]
[1744399120741,5.85836511,1569.8,1569.7,3.92674]
[1744399121046,2.22956511,1569.8,1569.7,7.13454]
[1744399121941,4.87586511,1569.8,1569.7,7.13454]
[1744399122437,0.00956511,1569.8,1569.7,7.13454]
[1744399124150,1.28421511,1569.8,1569.7,7.13454]
[1744399124351,2.76516511,1569.8,1569.7,3.92674]
[1744399124842,2.76516511,1569.8,1569.7,7.13454]
[1744399125748,0.00956511,1569.8,1569.7,7.13454]
[1744399126748,0.00956511,1569.8,1569.7,12.13454]
[1744399129650,5.11e-06,1569.8,1569.7,12.13454]
[1744399129849,5.0276,1570.3,1570.2,1.27433]
[1744399130045,5.0276,1570.3,1570.2,5.97133]
[1744399130240,6.30185,1570.3,1570.2,5.97133]
[1744399131337,0.00956511,1570.4,1570.3,1.27425]
[1744399131549,0.00956511,1570.4,1570.3,6.99035]
[1744399131748,0.00956511,1570.4,1570.3,9.21675]
[1744399132137,0.00956511,1570.4,1570.3,4.48205]
[1744399132650,2.66326511,1570.4,1570.3,4.48205]
[1744399133546,2.66326511,1570.4,1570.3,7.08785]
[1744399136453,0.00956511,1570.4,1570.3,7.08785]
[1744399139149,0.00956511,1570.4,1570.3,4.48205]
[1744399139349,4.91816511,1570.4,1570.3,4.48205]
[1744399139752,6.19233511,1570.4,1570.3,4.48205]
[1744399140157,4.91816511,1570.4,1570.3,4.48205]
[1744399140557,6.19233511,1570.4,1570.3,4.48205]
[1744399140947,4.91816511,1570.4,1570.3,4.48205]
[1744399142861,4.91816511,1570.4,1570.3,7.26835]
[1744399143154,4.91816511,1570.4,1570.3,4.48205]
[1744399143561,6.19233511,1570.4,1570.3,4.48205]
[1744399143751,6.19233511,1570.4,1570.3,1.27425]
[1744399144554,4.91816511,1570.4,1570.3,1.27425]
[1744399145059,1.27425,1570.3,1570.2,5.97127]
[1744399145253,6.32165,1570.3,1570.2,5.97127]
[1744399145559,5.0474,1570.3,1570.2,5.97127]
[1744399146161,6.32165,1570.3,1570.2,5.97127]
[1744399147154,5.0474,1570.3,1570.2,5.97127]
[1744399147359,5.0474,1570.3,1570.2,8.60567]
[1744399149260,0.00956511,1570.4,1570.3,1.27425]
[1744399149459,0.00956511,1570.4,1570.3,7.13525]
[1744399150362,1.27375,1571.0,1570.6,3.18484]
[1744399150562,2.5551,1570.8,1570.7,5.96692]
[1744399151056,2.5551,1570.8,1570.7,8.65402]
[1744399152958,2.39016511,1570.9,1570.8,1.27384]
[1744399153159,0.00956511,1570.9,1570.8,7.16874]
[1744399153662,0.00956511,1570.9,1570.8,4.48164]
[1744399153863,2.65236511,1570.9,1570.8,4.48164]
[1744399154259,2.65236511,1570.9,1570.8,1.27384]
[1744399154666,2.65236511,1570.9,1570.8,4.48164]
[1744399155060,3.92612511,1570.9,1570.8,4.48164]
[1744399155363,2.65236511,1570.9,1570.8,4.48164]
[1744399155764,3.92612511,1570.9,1570.8,4.48164]
[1744399156368,2.65236511,1570.9,1570.8,4.48164]
[1744399156569,3.92612511,1570.9,1570.8,4.48164]
[1744399157474,2.65236511,1570.9,1570.8,4.48164]
[1744399157678,2.65236511,1570.9,1570.8,7.23974]
[1744399158379,0.00956511,1570.9,1570.8,7.23974]
[1744399159282,0.00956511,1570.9,1570.8,4.48164]
[1744399159770,0.00956511,1570.9,1570.8,7.23974]
[1744399170477,0.00956511,1570.9,1570.8,9.59204]
[1744399172286,0.00956511,1570.9,1570.8,7.23974]
[1744399173587,0.00956511,1570.9,1570.8,4.48164]
[1744399173891,3.59002511,1570.9,1570.8,7.8988]
[1744399174085,6.18362511,1570.9,1570.8,7.8988]
[1744399174289,11.18362511,1570.9,1570.8,4.691]
[1744399174789,11.18362511,1570.9,1570.6,4.49132511]
[1744399174790,1.27392,1570.7,1570.6,3.21736511]
[1744399174987,1.27392,1570.7,1570.6,4.49136511]
[1744399175289,8.86752,1570.7,1570.6,3.21736511]
[1744399175489,8.86752,1570.7,1570.6,4.49136511]
[1744399175991,8.86752,1570.7,1570.6,3.21736511]
[1744399176492,7.5936,1570.7,1570.6,4.49136511]
[1744399176688,3.86752,1570.7,1570.6,3.21736511]
[1744399177685,3.86752,1570.7,1570.6,4.49136511]
[1744399178094,3.86752,1570.7,1570.6,3.21736511]
[1744399178794,3.86752,1570.7,1570.6,4.49136511]
[1744399179096,3.86752,1570.7,1570.6,0.00956511]
[1744399180587,3.86752,1570.7,1570.6,1.28356511]
[1744399181089,2.5936,1570.7,1570.6,1.28356511]
[1744399181393,2.5936,1570.7,1570.6,4.03146511]
[1744399183294,3.86752,1570.7,1570.6,4.03146511]
[1744399183491,2.5936,1570.7,1570.6,4.03146511]
[1744399184685,3.86752,1570.7,1570.6,4.03146511]
[1744399184889,3.86752,1570.7,1570.6,1.28356511]
[1744399188201,3.86752,1570.7,1570.6,0.00956511]
[1744399189092,3.86752,1570.7,1570.6,4.69756511]
[1744399189889,3.86752,1570.7,1570.6,5.97156511]
[1744399190094,3.86752,1570.7,1570.6,4.69756511]
[1744399190301,3.86752,1570.7,1570.6,5.97156511]
[1744399192500,3.86752,1570.7,1570.6,4.69756511]
[1744399192803,3.86752,1570.7,1570.6,5.97156511]
[1744399195398,3.86752,1570.7,1570.6,4.69756511]
[1744399195703,3.86752,1570.7,1570.6,5.97156511]
[1744399196095,2.5936,1570.7,1570.6,5.97156511]
[1744399196303,2.5936,1570.7,1570.6,8.79576511]
[1744399196997,3.86752,1570.7,1570.6,8.79576511]
[1744399197395,3.86752,1570.7,1570.6,4.69756511]
[1744399198401,3.86752,1570.7,1570.6,0.00956511]
[1744399200202,3.86752,1570.7,1570.6,1.28356511]
[1744399201099,3.86752,1570.7,1570.6,0.00956511]
[1744399201806,2.5936,1570.7,1570.6,1.28356511]
[1744399202102,2.3653,1570.8,1570.7,1.27392]
[1744399202493,2.3653,1570.8,1570.7,3.95682]
[1744399202995,3.63914,1570.8,1570.7,1.27392]
[1744399203195,6.45594,1570.8,1570.7,1.27392]
[1744399204407,6.45594,1570.8,1570.7,3.97942]
[1744399204993,5.1821,1570.8,1570.6,3.68702511]
[1744399205193,4.09072,1570.7,1570.6,3.68702511]
[1744399205397,4.09072,1570.7,1570.6,1.28352511]
[1744399205809,4.09072,1570.7,1570.6,0.00956511]
[1744399206304,2.8168,1570.7,1570.6,1.28356511]
[1744399206503,4.09072,1570.7,1570.6,1.28356511]
[1744399206905,4.09072,1570.7,1570.6,0.00956511]
[1744399207301,12.29852,1570.7,1570.6,0.00956511]
[1744399208400,7.29852,1570.7,1570.6,0.00956511]
[1744399209202,12.29852,1570.7,1570.6,0.00956511]
[1744399212305,1.27425,1570.3,1570.2,14.94691904]
[1744399212503,4.48205,1570.3,1570.2,14.94691904]
[1744399213303,1.27449,1570.0,1569.9,8.59667]
[1744399214207,3.85199,1570.0,1569.9,7.3221]
[1744399216305,3.85199,1570.0,1569.9,8.59667]
[1744399216508,3.65793511,1570.1,1570.0,1.27449]
[1744399216709,1.28403511,1570.1,1570.0,6.23409]
[1744399216914,1.28403511,1570.1,1570.0,2.6879]
[1744399219815,1.27449,1570.0,1569.9,5.95857]
[1744399220002,3.88299,1570.0,1569.9,7.4037]
[1744399220905,3.88299,1570.0,1569.9,2.7197]
[1744399221111,1.27457,1569.9,1569.8,0.00956511]
[1744399221311,3.98577,1569.9,1569.8,0.00956511]
[1744399221509,12.19357,1569.9,1569.8,0.00956511]
[1744399221916,12.19357,1569.9,1569.8,5.11e-06]
[1744399223108,7.19357,1569.9,1569.8,5.11e-06]
[1744399223315,3.98577,1569.9,1569.8,5.11e-06]
[1744399224016,12.19357,1569.9,1569.8,5.11e-06]
[1744399224915,7.19357,1569.9,1569.8,5.11e-06]
[1744399225313,3.98577,1569.9,1569.8,5.11e-06]
[1744399225509,8.96636903,1569.9,1569.8,1.27465511]
[1744399225715,6.25516903,1569.9,1569.8,1.27465511]
[1744399225912,4.98059903,1569.9,1569.8,10.95965511]
[1744399226216,4.98059903,1569.9,1569.8,14.16745511]
[1744399229116,4.98059903,1569.9,1569.8,9.16745511]
[1744399229924,4.05703511,1570.1,1569.9,1.27451]
[1744399230120,4.05703511,1570.1,1569.9,4.05441]
[1744399230323,4.05703511,1570.1,1570.0,2.7936]
[1744399230522,1.27457,1569.9,1569.8,5.61200511]
[1744399230720,1.27457,1569.9,1569.8,7.08920511]
[1744399230923,1.27457,1569.9,1569.8,8.36385511]
[1744399231224,1.27457,1569.9,1569.8,11.15745511]
[1744399231624,1.27457,1569.9,1569.8,13.09060511]
[1744399231924,3.85073,1570.0,1569.8,13.09060511]
[1744399232123,3.85073,1570.0,1569.9,2.7936]
[1744399233022,1.27457,1569.9,1569.8,10.29700511]
[1744399233216,3.99947,1569.9,1569.8,10.29700511]
[1744399233821,3.99947,1569.9,1569.8,13.14320511]
[1744399234418,8.99947,1569.9,1569.8,5.11e-06]
[1744399235419,3.55906,1570.0,1569.8,5.11e-06]
[1744399235725,1.27456,1570.0,1569.9,1.27457]
[1744399235921,3.99946,1570.0,1569.9,1.27457]
[1744399236123,3.99946,1570.0,1569.9,4.12077]
[1744399236431,3.99946,1570.0,1569.9,2.8462]
[1744399236621,3.99946,1570.0,1569.9,4.12077]
[1744399236821,8.46224414,1570.1,1570.0,1.27449]
[1744399237321,1.27449,1570.0,1569.9,4.12071]
[1744399237521,4.11529,1570.0,1569.9,4.12071]
[1744399238329,1.27457,1569.9,1569.8,1.27465511]
[1744399238529,4.11537,1569.9,1569.8,1.27465511]
[1744399238931,4.11537,1569.9,1569.8,3.86395511]
[1744399239440,4.11537,1569.9,1569.8,5.11e-06]
[1744399240825,4.11537,1569.9,1569.8,1.27465511]
[1744399241225,4.11537,1569.9,1569.8,2.68270511]
[1744399242232,4.11537,1569.9,1569.8,7.16515511]
[1744399243228,3.70376,1570.0,1569.9,1.27457]
[1744399243434,1.27456,1570.0,1569.9,3.84097]
[1744399243634,1.27456,1570.0,1569.9,8.44027]
[1744399243933,1.27457,1569.9,1569.8,4.48239511]
[1744399244128,1.27457,1569.9,1569.8,7.04879511]
[1744399246631,4.09327,1569.9,1569.8,7.04879511]
[1744399248536,4.09327,1569.9,1569.8,9.24569511]
[1744399248930,2.8187,1569.9,1569.8,9.24569511]
[1744399249129,1.27453,1570.0,1569.9,1.27457]
[1744399249334,1.27453,1570.0,1569.9,2.5722]
[1744399249738,1.27453,1570.0,1569.9,3.84677]
[1744399250437,3.95673,1570.0,1569.9,3.84677]
[1744399251739,2.6822,1570.0,1569.9,3.84677]
[1744399252338,2.20716511,1570.1,1570.0,1.27449]
[1744399252641,0.00956511,1570.1,1570.0,3.94999]
[1744399253035,0.00956511,1570.1,1570.0,8.62999]
[1744399253527,0.00956511,1570.1,1570.0,11.83779]
[1744399253726,0.00956511,1570.1,1570.0,16.83779]
[1744399254440,5.11e-06,1570.1,1570.0,16.83779]
[1744399256740,4.97979903,1570.4,1570.3,1.27425]
[1744399256937,4.5462,1570.7,1570.3,7.8878]
[1744399257142,3.922,1570.6,1570.4,4.0828]
[1744399257440,2.648,1570.5,1570.4,4.0828]
[1744399258840,3.92209,1570.5,1570.4,4.0828]
[1744399259042,2.648,1570.5,1570.4,4.0828]
[1744399259844,0.00956511,1570.6,1570.5,1.27409]
[1744399260036,0.00956511,1570.6,1570.5,11.67559]
[1744399261145,0.00956511,1570.6,1570.5,16.67559]
[1744399262540,5.11e-06,1570.6,1570.5,16.67559]
[1744399262839,7.47089855,1571.1,1571.0,1.27368]
[1744399263040,7.47089855,1571.1,1571.0,9.16048]
[1744399263436,6.07789855,1571.1,1571.0,14.16048]
[1744399263637,4.84294193,1571.1,1571.0,16.84208]
[1744399263848,0.00956511,1571.2,1571.1,1.2736]
[1744399264046,0.00956511,1571.2,1571.1,8.8324]
[1744399264247,0.00956511,1571.2,1571.1,3.8324]
[1744399267243,0.00956511,1571.2,1571.1,5.9516]
[1744399267440,2.69016511,1571.2,1571.1,5.9516]
[1744399267635,2.69016511,1571.2,1571.1,8.5974]
[1744399268546,0.00956511,1571.2,1571.1,8.5974]
[1744399269343,0.00956511,1571.2,1571.1,5.9516]
[1744399269735,2.69016511,1571.2,1571.1,5.9516]
[1744399270753,2.69016511,1571.2,1571.1,8.6439]
[1744399270952,0.00956511,1571.2,1571.1,8.6439]
[1744399275048,1.2736,1571.1,1571.0,9.15345]
[1744399275348,8.6339,1571.1,1571.0,4.672]
[1744399275551,13.6339,1571.1,1571.0,4.672]
[1744399275851,1.27368,1571.0,1570.9,0.00956511]
[1744399276052,3.97158,1571.0,1570.9,0.00956511]
[1744399276254,8.97158,1571.0,1570.9,0.00956511]
[1744399280352,18.73839,1571.0,1570.4,1.27411]
[1744399280553,1.27417,1570.4,1570.3,5.9462]
[1744399280752,1.27417,1570.4,1570.3,4.672]
[1744399280952,4.48196,1570.5,1570.1,7.85794]
[1744399281152,2.7302,1570.4,1570.3,1.27425]
[1744399281755,4.00437,1570.4,1570.3,1.94446149]
[1744399282252,4.00437,1570.4,1570.3,0.67021149]
[1744399283556,6.31387,1570.4,1570.3,0.67021149]
[1744399285857,0.00956511,1570.5,1570.4,1.27417]
[1744399286159,1.28365511,1570.5,1570.4,4.673]
[1744399286452,1.28365511,1570.5,1570.4,5.94717]
[1744399286660,1.27425,1570.3,1570.2,7.89036511]
[1744399286860,0.60403851,1570.3,1570.2,4.68256511]
[1744399287257,2.5712,1570.3,1570.2,5.95689511]
[1744399287554,2.5712,1570.3,1570.2,9.20398309]
[1744399288057,2.5712,1570.3,1570.2,9.24328872]
[1744399288461,0.00956511,1570.5,1570.2,7.96895872]
[1744399288656,2.6101,1570.4,1570.3,4.1543737]
[1744399289662,3.88427,1570.4,1570.3,0.0870537]
[1744399290859,2.6101,1570.4,1570.3,1.3613037]
[1744399291165,1.27417,1570.4,1570.3,1.3613037]
[1744399291355,2.6866,1570.4,1570.3,1.3613037]
[1744399292360,3.96077,1570.4,1570.3,1.3613037]
[1744399292550,2.6866,1570.4,1570.3,1.3613037]
[1744399292956,2.28576511,1570.5,1570.4,1.27417]
[1744399293157,2.28576511,1570.5,1570.4,7.30297]
[1744399293362,4.97236511,1570.5,1570.4,7.30297]
[1744399293556,2.69616511,1570.5,1570.4,7.30297]
[1744399293756,2.69616511,1570.5,1570.4,7.3900237]
[1744399293958,0.00956511,1570.5,1570.4,7.3900237]
[1744399294360,0.00956511,1570.5,1570.4,7.43939312]
[1744399294955,0.00956511,1570.5,1570.4,7.4770774]
[1744399296159,0.00956511,1570.5,1570.4,3.3819074]
[1744399296369,1.28365511,1570.5,1570.4,3.3819074]
[1744399296565,3.92325511,1570.5,1570.4,3.3819074]
[1744399298172,3.92325511,1570.5,1570.4,1.4482774]
[1744399298869,0.00956511,1570.5,1570.4,4.6560774]
[1744399299070,0.00956511,1570.5,1570.4,9.6560774]
[1744399299367,0.00956511,1570.5,1570.4,4.6560774]
[1744399299559,0.00956511,1570.5,1570.4,9.6560774]
[1744399300167,5.11e-06,1570.5,1570.4,9.6560774]
[1744399300763,5.11e-06,1570.5,1570.4,9.48197]
[1744399300968,5.11e-06,1570.5,1570.4,9.70533015]
[1744399301868,5.11e-06,1570.5,1570.4,9.7431311]
[1744399303185,5.11e-06,1570.5,1570.4,4.7431311]
[1744399307570,5.11e-06,1570.5,1570.4,4.76572795]
[1744399307772,5.11e-06,1570.5,1570.4,7.18242795]
[1744399308874,5.11e-06,1570.5,1570.4,9.98422795]
[1744399318379,5.11e-06,1570.5,1570.4,98.24722795]
[1744399320679,5.11e-06,1570.5,1570.4,93.02872795]
[1744399320983,5.00000511,1570.5,1570.4,93.02872795]
[1744399321183,5.11e-06,1570.5,1570.4,93.02872795]
[1744399321477,5.11e-06,1570.5,1570.4,95.73072795]
[1744399321683,5.11e-06,1570.5,1570.4,128.80314439]
[1744399323081,5.11e-06,1570.5,1570.4,131.51864439]
[1744399323477,5.11e-06,1570.5,1570.4,128.80314439]
[1744399324586,5.11e-06,1570.5,1570.4,40.54014439]
[1744399324791,5.00000511,1570.5,1570.4,37.33234439]
[1744399325292,5.11e-06,1570.5,1570.4,37.33234439]
[1744399325702,5.11e-06,1570.5,1570.4,14.75201467]
[1744399326485,4.7707,1570.7,1570.6,1.274]
[1744399326684,4.7707,1570.7,1570.6,9.43455795]
[1744399327494,4.7707,1570.7,1570.6,12.15505795]
[1744399329595,7.4742,1570.7,1570.6,12.15505795]
[1744399330097,0.00956511,1570.8,1570.7,1.27392]
[1744399330289,0.00956511,1570.8,1570.7,4.07412]
[1744399330491,0.00956511,1570.8,1570.7,6.47562]
[1744399330795,0.00956511,1570.8,1570.7,6.75937795]
[1744399330989,0.00956511,1570.8,1570.7,8.95977795]
[1744399331496,5.11e-06,1570.8,1570.7,8.95977795]
[1744399333593,5.11e-06,1570.8,1570.7,1.55767795]
[1744399333994,5.00000511,1570.8,1570.7,1.55767795]
[1744399334191,7.29820511,1570.8,1570.7,1.55767795]
[1744399334390,9.87810511,1570.8,1570.7,1.55767795]
[1744399334895,11.15194511,1570.8,1570.7,52.62969181]
[1744399335095,11.15114511,1570.8,1570.7,52.62969181]
[1744399335495,14.35894511,1570.8,1570.7,52.62969181]
[1744399336200,11.15114511,1570.8,1570.7,52.62969181]
[1744399337201,14.35894511,1570.8,1570.7,52.62969181]
[1744399337604,14.35894511,1570.8,1570.7,0.28375795]
[1744399337999,4.8781,1570.8,1570.7,1.55767795]
[1744399338701,3.54977,1570.8,1570.7,4.25647795]
[1744399339003,2.3261,1571.0,1570.9,1.27376]
[1744399339199,2.3261,1571.0,1570.9,9.14556]
[1744399339401,7.46857194,1571.1,1571.0,1.27368]
[1744399339601,7.46857194,1571.1,1571.0,3.97248]
[1744399339903,7.46857194,1571.1,1571.0,4.25623795]
[1744399340800,4.39121194,1571.1,1571.0,9.25623795]
[1744399341005,4.39121194,1571.1,1571.0,4.25623795]